[Event "Titled Tuesday Blitz June 28 Late 2022"]
[White "Rustemov, Alexander"]
[Black "Jobava, Baadur"]
[WhiteFideId "4119002"]
[BlackFideId "13601520"]
[WhiteElo "2739"]
[BlackElo "2617"]
[Result "0-1"]
[Round "07"]
[TimeControl "180+1"]
[Date "2022.06.28"]
[WhiteClock "0:00:02"]
[BlackClock "0:00:38"]

1. d4 {[%clk 0:03:00]}  d5 {[%clk 0:02:57]} 2. c4 {[%clk 0:03:01]}  dxc4 {[%clk 0:02:58]} 3. Nf3 {[%clk 0:03:00]}  Nf6 {[%clk 0:02:57]} 4. e3 {[%clk 0:03:01]}  Bg4 {[%clk 0:02:58]} 5. Bxc4 {[%clk 0:03:01]}  e6 {[%clk 0:02:58]} 6. h3 {[%clk 0:02:59]}  Bh5 {[%clk 0:02:59]} 7. Nc3 {[%clk 0:02:58]}  Nc6 {[%clk 0:02:57]} 8. O-O {[%clk 0:02:55]}  Bd6 {[%clk 0:02:57]} 9. Re1 {[%clk 0:02:54]}  O-O {[%clk 0:02:57]} 10. g4 {[%clk 0:02:51]}  Nxg4 {[%clk 0:02:53]} 11. hxg4 {[%clk 0:02:51]}  Bxg4 {[%clk 0:02:54]} 12. Be2 {[%clk 0:02:45]}  f5 {[%clk 0:02:52]} 13. Kg2 {[%clk 0:02:41]}  Rf6 {[%clk 0:02:48]} 14. Rh1 {[%clk 0:02:40]}  Rg6 {[%clk 0:02:28]} 15. Kf1 {[%clk 0:02:40]}  Qf6 {[%clk 0:02:29]} 16. Ne1 {[%clk 0:02:06]}  Rf8 {[%clk 0:02:25]} 17. f4 {[%clk 0:01:56]}  Rh6 {[%clk 0:02:15]} 18. Rxh6 {[%clk 0:01:54]}  Qxh6 {[%clk 0:02:16]} 19. Bxg4 {[%clk 0:01:52]}  Qh1+ {[%clk 0:02:16]} 20. Kf2 {[%clk 0:01:45]}  Qh4+ {[%clk 0:02:16]} 21. Kg2 {[%clk 0:01:37]}  fxg4 {[%clk 0:02:16]} 22. Nd3 {[%clk 0:01:20]}  Qh3+ {[%clk 0:02:15]} 23. Kg1 {[%clk 0:01:13]}  Qg3+ {[%clk 0:02:15]} 24. Kf1 {[%clk 0:01:09]}  g5 {[%clk 0:02:11]} 25. Qe2 {[%clk 0:00:47]}  gxf4 {[%clk 0:02:10]} 26. exf4 {[%clk 0:00:43]}  Nxd4 {[%clk 0:02:08]} 27. Qe4 {[%clk 0:00:41]}  e5 {[%clk 0:01:41]} 28. Be3 {[%clk 0:00:39]}  Qh3+ {[%clk 0:01:40]} 29. Ke1 {[%clk 0:00:24]}  Nf3+ {[%clk 0:01:27]} 30. Ke2 {[%clk 0:00:20]}  exf4 {[%clk 0:01:23]} 31. Nf2 {[%clk 0:00:08]}  Qg2 {[%clk 0:01:06]} 32. Qe6+ {[%clk 0:00:07]}  Kg7 {[%clk 0:01:07]} 33. Qxg4+ {[%clk 0:00:08]}  Qxg4 {[%clk 0:01:07]} 34. Nxg4 {[%clk 0:00:09]}  fxe3 {[%clk 0:01:08]} 35. Nxe3 {[%clk 0:00:09]}  Kg6 {[%clk 0:01:03]} 36. Rh1 {[%clk 0:00:09]}  h5 {[%clk 0:01:02]} 37. Ne4 {[%clk 0:00:09]}  Be5 {[%clk 0:00:48]} 38. b4 {[%clk 0:00:07]}  b5 {[%clk 0:00:45]} 39. a3 {[%clk 0:00:07]}  h4 {[%clk 0:00:42]} 40. Nd5 {[%clk 0:00:07]}  Nd4+ {[%clk 0:00:41]} 41. Kd3 {[%clk 0:00:07]}  Rf3+ {[%clk 0:00:41]} 42. Ne3 {[%clk 0:00:07]}  Nf5 {[%clk 0:00:40]} 43. Rg1+ {[%clk 0:00:05]}  Kh6 {[%clk 0:00:37]} 44. Re1 {[%clk 0:00:02]}  h3 {[%clk 0:00:38]} 0-1


[Site "https://www.chess.com"]

[Event "Titled Tuesday Blitz June 28 Late 2022"]
[White "Samsonkin, Artiom"]
[Black "Carrasco Miranda, Andres"]
[WhiteFideId "13503111"]
[BlackFideId "3405990"]
[WhiteElo "2513"]
[BlackElo "2177"]
[Result "0-1"]
[Round "07"]
[TimeControl "180+1"]
[Date "2022.06.29"]
[WhiteClock "0:00:01"]
[BlackClock "0:00:33"]

1. d4 {[%clk 0:02:56]}  Nf6 {[%clk 0:02:59]} 2. Bf4 {[%clk 0:02:54]}  g6 {[%clk 0:02:59]} 3. Nc3 {[%clk 0:02:53]}  d5 {[%clk 0:02:59]} 4. Qd2 {[%clk 0:02:53]}  c6 {[%clk 0:02:57]} 5. Nf3 {[%clk 0:02:50]}  b5 {[%clk 0:02:57]} 6. a3 {[%clk 0:02:46]}  Nbd7 {[%clk 0:02:56]} 7. Ne5 {[%clk 0:02:45]}  Bb7 {[%clk 0:02:53]} 8. g4 {[%clk 0:02:13]}  Bg7 {[%clk 0:02:50]} 9. h4 {[%clk 0:02:08]}  Nxe5 {[%clk 0:02:45]} 10. Bxe5 {[%clk 0:02:06]}  Ne4 {[%clk 0:02:38]} 11. Nxe4 {[%clk 0:02:06]}  Bxe5 {[%clk 0:02:37]} 12. Nc5 {[%clk 0:02:07]}  Qb6 {[%clk 0:02:20]} 13. e3 {[%clk 0:01:09]}  Bd6 {[%clk 0:02:16]} 14. b4 {[%clk 0:01:02]}  Bc8 {[%clk 0:02:12]} 15. Be2 {[%clk 0:00:58]}  a5 {[%clk 0:01:59]} 16. c3 {[%clk 0:00:43]}  e5 {[%clk 0:01:52]} 17. h5 {[%clk 0:00:39]}  g5 {[%clk 0:01:38]} 18. h6 {[%clk 0:00:34]}  axb4 {[%clk 0:01:10]} 19. cxb4 {[%clk 0:00:32]}  Bxc5 {[%clk 0:01:10]} 20. dxc5 {[%clk 0:00:13]}  Qd8 {[%clk 0:01:05]} 21. Rh5 {[%clk 0:00:13]}  Qf6 {[%clk 0:01:01]} 22. Qb2 {[%clk 0:00:10]}  Be6 {[%clk 0:00:54]} 23. f4 {[%clk 0:00:08]}  gxf4 {[%clk 0:00:50]} 24. exf4 {[%clk 0:00:01]}  Qxf4 {[%clk 0:00:44]} 25. Rxe5 {[%clk 0:00:01]}  Kd7 {[%clk 0:00:33]} 0-1


[Site "https://www.chess.com"]

[Event "Titled Tuesday Blitz June 28 Late 2022"]
[White "Silva, Miguel Antonio Neto"]
[Black "D`Arruda, Ricardo D."]
[WhiteFideId "1911929"]
[BlackFideId "100692"]
[WhiteElo "2204"]
[BlackElo "2434"]
[Result "0-1"]
[Round "07"]
[TimeControl "180+1"]
[Date "2022.06.29"]
[WhiteClock "0:00:02"]
[BlackClock "0:00:14"]

1. f4 {[%clk 0:02:54]}  d5 {[%clk 0:02:53]} 2. Nf3 {[%clk 0:02:54]}  Nc6 {[%clk 0:02:49]} 3. e3 {[%clk 0:02:54]}  Nf6 {[%clk 0:02:48]} 4. Bb5 {[%clk 0:02:53]}  Bd7 {[%clk 0:02:47]} 5. b3 {[%clk 0:02:53]}  g6 {[%clk 0:02:46]} 6. Bb2 {[%clk 0:02:53]}  Bg7 {[%clk 0:02:47]} 7. O-O {[%clk 0:02:53]}  O-O {[%clk 0:02:47]} 8. Bxc6 {[%clk 0:02:53]}  Bxc6 {[%clk 0:02:47]} 9. Ne5 {[%clk 0:02:53]}  Be8 {[%clk 0:02:47]} 10. d3 {[%clk 0:02:53]}  Nd7 {[%clk 0:02:47]} 11. d4 {[%clk 0:02:37]}  f6 {[%clk 0:02:45]} 12. Nxd7 {[%clk 0:02:33]}  Bxd7 {[%clk 0:02:46]} 13. c4 {[%clk 0:02:31]}  c6 {[%clk 0:02:40]} 14. Nc3 {[%clk 0:02:30]}  Be6 {[%clk 0:02:23]} 15. cxd5 {[%clk 0:02:21]}  cxd5 {[%clk 0:02:24]} 16. Rc1 {[%clk 0:02:19]}  Qd7 {[%clk 0:02:23]} 17. Qf3 {[%clk 0:02:02]}  Rac8 {[%clk 0:02:20]} 18. h3 {[%clk 0:01:58]}  Rc7 {[%clk 0:02:12]} 19. a4 {[%clk 0:01:27]}  Rfc8 {[%clk 0:01:52]} 20. Nb5 {[%clk 0:01:16]}  Rxc1 {[%clk 0:01:51]} 21. Rxc1 {[%clk 0:01:16]}  a6 {[%clk 0:01:51]} 22. Rxc8+ {[%clk 0:01:14]}  Qxc8 {[%clk 0:01:52]} 23. Nc3 {[%clk 0:01:14]}  Qc6 {[%clk 0:01:51]} 24. g4 {[%clk 0:01:05]}  Bf7 {[%clk 0:01:45]} 25. Qd1 {[%clk 0:01:01]}  e5 {[%clk 0:01:43]} 26. Ne2 {[%clk 0:00:55]}  exf4 {[%clk 0:01:33]} 27. Nxf4 {[%clk 0:00:54]}  Qe8 {[%clk 0:01:22]} 28. Kf2 {[%clk 0:00:54]}  Bf8 {[%clk 0:01:16]} 29. Qc2 {[%clk 0:00:51]}  Bd6 {[%clk 0:01:14]} 30. Ne2 {[%clk 0:00:44]}  Qd7 {[%clk 0:01:06]} 31. Bc1 {[%clk 0:00:26]}  h5 {[%clk 0:01:04]} 32. gxh5 {[%clk 0:00:20]}  gxh5 {[%clk 0:01:04]} 33. Kg2 {[%clk 0:00:18]}  Kg7 {[%clk 0:00:53]} 34. Nf4 {[%clk 0:00:15]}  Bxf4 {[%clk 0:00:53]} 35. exf4 {[%clk 0:00:15]}  Bg6 {[%clk 0:00:54]} 36. Qf2 {[%clk 0:00:11]}  Be4+ {[%clk 0:00:54]} 37. Kh2 {[%clk 0:00:12]}  Qc6 {[%clk 0:00:50]} 38. Be3 {[%clk 0:00:11]}  Qc3 {[%clk 0:00:49]} 39. Qg3+ {[%clk 0:00:10]}  Kf7 {[%clk 0:00:49]} 40. f5 {[%clk 0:00:10]}  Bxf5 {[%clk 0:00:47]} 41. Qf4 {[%clk 0:00:09]}  Be4 {[%clk 0:00:45]} 42. Kg3 {[%clk 0:00:10]}  Qxb3 {[%clk 0:00:41]} 43. Qc7+ {[%clk 0:00:09]}  Kg6 {[%clk 0:00:40]} 44. Kf4 {[%clk 0:00:06]}  Qd3 {[%clk 0:00:36]} 45. Qd7 {[%clk 0:00:04]}  Qf1+ {[%clk 0:00:35]} 46. Kg3 {[%clk 0:00:01]}  Qf3+ {[%clk 0:00:35]} 47. Kh4 {[%clk 0:00:01]}  Qxe3 {[%clk 0:00:17]} 48. Qe8+ {[%clk 0:00:01]}  Kg7 {[%clk 0:00:17]} 49. Qe7+ {[%clk 0:00:01]}  Kg6 {[%clk 0:00:14]} 50. Qe8+ {[%clk 0:00:02]}  Kf5 {[%clk 0:00:14]} 51. Qd7+ {[%clk 0:00:02]}  Kf4 {[%clk 0:00:14]} 52. Qd6+ {[%clk 0:00:01]}  Kf3 {[%clk 0:00:14]} 53. Qxf6+ {[%clk 0:00:02]}  Ke2 {[%clk 0:00:14]} 0-1


[Site "https://www.chess.com"]

[Event "Titled Tuesday Blitz June 28 Late 2022"]
[White "Silvestre, Christian"]
[Black "Isajevsky, Anton"]
[WhiteFideId "30956269"]
[BlackFideId "4142500"]
[WhiteElo "2351"]
[BlackElo "2510"]
[Result "1/2-1/2"]
[Round "07"]
[TimeControl "180+1"]
[Date "2022.06.29"]
[WhiteClock "0:00:09"]
[BlackClock "0:00:02"]

1. Nf3 {[%clk 0:03:00]}  c5 {[%clk 0:02:53]} 2. c3 {[%clk 0:02:57]}  b6 {[%clk 0:02:49]} 3. d4 {[%clk 0:02:31]}  Bb7 {[%clk 0:02:47]} 4. Bf4 {[%clk 0:02:28]}  Nf6 {[%clk 0:02:43]} 5. e3 {[%clk 0:02:28]}  g6 {[%clk 0:02:24]} 6. h3 {[%clk 0:02:28]}  Bg7 {[%clk 0:02:24]} 7. a4 {[%clk 0:02:27]}  O-O {[%clk 0:02:02]} 8. Nbd2 {[%clk 0:02:24]}  d6 {[%clk 0:02:00]} 9. Bh2 {[%clk 0:02:23]}  a6 {[%clk 0:02:00]} 10. Bd3 {[%clk 0:02:22]}  Nbd7 {[%clk 0:02:00]} 11. Qe2 {[%clk 0:02:21]}  Ra7 {[%clk 0:01:59]} 12. O-O {[%clk 0:02:20]}  Qa8 {[%clk 0:01:59]} 13. Rfd1 {[%clk 0:02:15]}  Rc8 {[%clk 0:01:55]} 14. Bc4 {[%clk 0:02:06]}  h6 {[%clk 0:01:28]} 15. Nh4 {[%clk 0:01:53]}  Kf8 {[%clk 0:01:10]} 16. Bd3 {[%clk 0:01:49]}  Ne4 {[%clk 0:01:03]} 17. Nxe4 {[%clk 0:01:44]}  Bxe4 {[%clk 0:01:04]} 18. Nf3 {[%clk 0:01:43]}  Bxf3 {[%clk 0:00:44]} 19. gxf3 {[%clk 0:01:42]}  d5 {[%clk 0:00:33]} 20. Kh1 {[%clk 0:01:25]}  e5 {[%clk 0:00:30]} 21. dxe5 {[%clk 0:01:21]}  Bxe5 {[%clk 0:00:27]} 22. f4 {[%clk 0:01:12]}  Bg7 {[%clk 0:00:27]} 23. Kg1 {[%clk 0:01:06]}  Re8 {[%clk 0:00:17]} 24. Bc2 {[%clk 0:01:02]}  Nf6 {[%clk 0:00:17]} 25. Qf3 {[%clk 0:00:59]}  Rd7 {[%clk 0:00:16]} 26. Rd2 {[%clk 0:00:58]}  Red8 {[%clk 0:00:15]} 27. Rad1 {[%clk 0:00:57]}  Qc6 {[%clk 0:00:15]} 28. h4 {[%clk 0:00:52]}  b5 {[%clk 0:00:12]} 29. axb5 {[%clk 0:00:51]}  axb5 {[%clk 0:00:13]} 30. f5 {[%clk 0:00:51]}  gxf5 {[%clk 0:00:08]} 31. Qxf5 {[%clk 0:00:52]}  Qe6 {[%clk 0:00:08]} 32. Qf3 {[%clk 0:00:50]}  Ne4 {[%clk 0:00:08]} 33. Bxe4 {[%clk 0:00:44]}  dxe4 {[%clk 0:00:09]} 34. Qe2 {[%clk 0:00:43]}  c4 {[%clk 0:00:08]} 35. Rxd7 {[%clk 0:00:41]}  Rxd7 {[%clk 0:00:09]} 36. Bg3 {[%clk 0:00:37]}  Rd3 {[%clk 0:00:09]} 37. Ra1 {[%clk 0:00:36]}  Qd5 {[%clk 0:00:08]} 38. Qg4 {[%clk 0:00:30]}  Kg8 {[%clk 0:00:05]} 39. Kg2 {[%clk 0:00:26]}  Kh7 {[%clk 0:00:05]} 40. Ra7 {[%clk 0:00:23]}  h5 {[%clk 0:00:03]} 41. Qc8 {[%clk 0:00:19]}  Kg6 {[%clk 0:00:02]} 42. Ra6+ {[%clk 0:00:16]}  f6 {[%clk 0:00:02]} 43. Ra8 {[%clk 0:00:16]}  Qf5 {[%clk 0:00:02]} 44. Qe8+ {[%clk 0:00:15]}  Kh7 {[%clk 0:00:02]} 45. Qg8+ {[%clk 0:00:14]}  Kg6 {[%clk 0:00:02]} 46. Qe8+ {[%clk 0:00:14]}  Kh7 {[%clk 0:00:03]} 47. Kh2 {[%clk 0:00:12]}  Rd2 {[%clk 0:00:02]} 48. Kg1 {[%clk 0:00:10]}  Rd1+ {[%clk 0:00:02]} 49. Kh2 {[%clk 0:00:10]}  Rd2 {[%clk 0:00:02]} 50. Qg8+ {[%clk 0:00:10]}  Kg6 {[%clk 0:00:03]} 51. Qe8+ {[%clk 0:00:09]}  Kh7 {[%clk 0:00:02]} 1/2-1/2


[Site "https://www.chess.com"]

[Event "Titled Tuesday Blitz June 28 Late 2022"]
[White "Siniauski, Artsiom"]
[Black "Rios Escobar, Adan"]
[WhiteFideId "13512269"]
[BlackFideId "3403645"]
[WhiteElo "2606"]
[BlackElo "2466"]
[Result "1-0"]
[Round "07"]
[TimeControl "180+1"]
[Date "2022.06.29"]
[WhiteClock "0:00:53"]
[BlackClock "0:00:03"]

1. e4 {[%clk 0:02:49]}  c5 {[%clk 0:02:57]} 2. Nf3 {[%clk 0:02:49]}  d6 {[%clk 0:02:55]} 3. c3 {[%clk 0:02:49]}  Nf6 {[%clk 0:02:53]} 4. Be2 {[%clk 0:02:50]}  g6 {[%clk 0:02:48]} 5. O-O {[%clk 0:02:49]}  Bg7 {[%clk 0:02:47]} 6. Re1 {[%clk 0:02:50]}  O-O {[%clk 0:02:44]} 7. Bf1 {[%clk 0:02:51]}  Nc6 {[%clk 0:02:25]} 8. h3 {[%clk 0:02:50]}  e5 {[%clk 0:02:18]} 9. a4 {[%clk 0:02:49]}  h6 {[%clk 0:02:05]} 10. Na3 {[%clk 0:02:48]}  Be6 {[%clk 0:02:01]} 11. d3 {[%clk 0:02:44]}  Re8 {[%clk 0:01:58]} 12. Bd2 {[%clk 0:02:35]}  d5 {[%clk 0:01:54]} 13. exd5 {[%clk 0:02:33]}  Bxd5 {[%clk 0:01:55]} 14. Be3 {[%clk 0:02:24]}  b6 {[%clk 0:01:52]} 15. Nc4 {[%clk 0:02:10]}  e4 {[%clk 0:01:46]} 16. dxe4 {[%clk 0:02:09]}  Bxe4 {[%clk 0:01:38]} 17. Bf4 {[%clk 0:01:49]}  Qd5 {[%clk 0:01:12]} 18. Nd6 {[%clk 0:01:47]}  Bxf3 {[%clk 0:00:58]} 19. Qxf3 {[%clk 0:01:44]}  Rxe1 {[%clk 0:00:55]} 20. Rxe1 {[%clk 0:01:43]}  Qxf3 {[%clk 0:00:53]} 21. gxf3 {[%clk 0:01:43]}  Nd5 {[%clk 0:00:41]} 22. Bg3 {[%clk 0:01:33]}  g5 {[%clk 0:00:17]} 23. Bc4 {[%clk 0:01:31]}  Nf4 {[%clk 0:00:10]} 24. Bxf4 {[%clk 0:01:32]}  gxf4 {[%clk 0:00:11]} 25. Bxf7+ {[%clk 0:01:32]}  Kf8 {[%clk 0:00:10]} 26. Bh5 {[%clk 0:01:33]}  Ne5 {[%clk 0:00:10]} 27. Nf5 {[%clk 0:01:31]}  Bf6 {[%clk 0:00:09]} 28. Nxh6 {[%clk 0:01:29]}  Rd8 {[%clk 0:00:08]} 29. Kg2 {[%clk 0:01:28]}  Rd2 {[%clk 0:00:07]} 30. Ng4 {[%clk 0:01:24]}  Nxg4 {[%clk 0:00:04]} 31. fxg4 {[%clk 0:01:24]}  Bh4 {[%clk 0:00:03]} 32. Kf3 {[%clk 0:00:53]}  Rxf2+ {[%clk 0:00:02]} 33. Ke4 {[%clk 0:00:53]}  Rxb2 {[%clk 0:00:02]} 34. Rf1 {[%clk 0:00:52]}  Re2+ {[%clk 0:00:02]} 35. Kxf4 {[%clk 0:00:51]}  Rf2+ {[%clk 0:00:01]} 36. Rxf2 {[%clk 0:00:51]}  Bxf2 {[%clk 0:00:02]} 37. c4 {[%clk 0:00:52]}  Bd4 {[%clk 0:00:02]} 38. Ke4 {[%clk 0:00:51]}  Kg7 {[%clk 0:00:03]} 39. Be8 {[%clk 0:00:51]}  Kf6 {[%clk 0:00:04]} 40. h4 {[%clk 0:00:51]}  Bf2 {[%clk 0:00:04]} 41. g5+ {[%clk 0:00:51]}  Kg7 {[%clk 0:00:03]} 42. h5 {[%clk 0:00:51]}  Bh4 {[%clk 0:00:04]} 43. Kf5 {[%clk 0:00:51]}  Bf2 {[%clk 0:00:04]} 44. Bc6 {[%clk 0:00:50]}  Bd4 {[%clk 0:00:04]} 45. h6+ {[%clk 0:00:50]}  Kh8 {[%clk 0:00:04]} 46. Be4 {[%clk 0:00:51]}  Bc3 {[%clk 0:00:04]} 47. Ke6 {[%clk 0:00:51]}  a6 {[%clk 0:00:04]} 48. Kf7 {[%clk 0:00:51]}  b5 {[%clk 0:00:05]} 49. g6 {[%clk 0:00:51]}  bxc4 {[%clk 0:00:04]} 50. g7+ {[%clk 0:00:52]}  Bxg7 {[%clk 0:00:03]} 51. hxg7# {[%clk 0:00:53]} 1-0


[Site "https://www.chess.com"]

[Event "Titled Tuesday Blitz June 28 Late 2022"]
[White "Tatarinov, Dmitry"]
[Black "Dubov, Daniil"]
[WhiteFideId "24160067"]
[BlackFideId "24126055"]
[WhiteElo "2302"]
[BlackElo "2791"]
[Result "0-1"]
[Round "07"]
[TimeControl "180+1"]
[Date "2022.06.28"]
[WhiteClock "0:01:39"]
[BlackClock "0:02:38"]

1. d4 {[%clk 0:03:00]}  d5 {[%clk 0:02:59]} 2. Nf3 {[%clk 0:03:01]}  e6 {[%clk 0:02:59]} 3. c4 {[%clk 0:03:01]}  Nf6 {[%clk 0:03:00]} 4. g3 {[%clk 0:03:01]}  Be7 {[%clk 0:02:59]} 5. Bg2 {[%clk 0:03:02]}  O-O {[%clk 0:03:00]} 6. O-O {[%clk 0:03:02]}  dxc4 {[%clk 0:03:00]} 7. Qc2 {[%clk 0:03:03]}  b5 {[%clk 0:03:00]} 8. a4 {[%clk 0:03:03]}  b4 {[%clk 0:03:00]} 9. Nfd2 {[%clk 0:03:02]}  Nd5 {[%clk 0:02:59]} 10. Nxc4 {[%clk 0:02:58]}  c5 {[%clk 0:02:59]} 11. e4 {[%clk 0:02:52]}  Nb6 {[%clk 0:02:57]} 12. Nbd2 {[%clk 0:02:17]}  Nc6 {[%clk 0:02:55]} 13. dxc5 {[%clk 0:02:14]}  Nd4 {[%clk 0:02:45]} 14. Qb1 {[%clk 0:02:10]}  Bxc5 {[%clk 0:02:45]} 15. e5 {[%clk 0:02:01]}  Ba6 {[%clk 0:02:44]} 16. b3 {[%clk 0:01:44]}  Rc8 {[%clk 0:02:43]} 17. Bb2 {[%clk 0:01:43]}  Nxc4 {[%clk 0:02:39]} 18. bxc4 {[%clk 0:01:39]}  Ne2+ {[%clk 0:02:38]} 0-1


[Site "https://www.chess.com"]

[Event "Titled Tuesday Blitz June 28 Late 2022"]
[White "Urbina Perez, Juan Antonio"]
[Black "Gabdushev, Ruslan"]
[WhiteFideId "2217368"]
[BlackFideId "4137833"]
[WhiteElo "2192"]
[BlackElo "2312"]
[Result "1-0"]
[Round "07"]
[TimeControl "180+1"]
[Date "2022.06.29"]
[WhiteClock "0:01:41"]
[BlackClock "0:00:20"]

1. e4 {[%clk 0:02:56]}  Nc6 {[%clk 0:02:34]} 2. Nf3 {[%clk 0:02:55]}  d6 {[%clk 0:02:33]} 3. d4 {[%clk 0:02:53]}  Bg4 {[%clk 0:02:32]} 4. Bb5 {[%clk 0:02:53]}  a6 {[%clk 0:02:31]} 5. Bxc6+ {[%clk 0:02:52]}  bxc6 {[%clk 0:02:31]} 6. Nc3 {[%clk 0:02:53]}  e6 {[%clk 0:02:30]} 7. h3 {[%clk 0:02:52]}  Bh5 {[%clk 0:02:29]} 8. Be3 {[%clk 0:02:51]}  Qb8 {[%clk 0:02:27]} 9. Rb1 {[%clk 0:02:49]}  a5 {[%clk 0:02:20]} 10. a3 {[%clk 0:02:46]}  Nf6 {[%clk 0:02:16]} 11. Bg5 {[%clk 0:02:46]}  Nd7 {[%clk 0:02:09]} 12. Qd3 {[%clk 0:02:45]}  h6 {[%clk 0:02:07]} 13. Bd2 {[%clk 0:02:44]}  d5 {[%clk 0:01:57]} 14. exd5 {[%clk 0:02:41]}  cxd5 {[%clk 0:01:56]} 15. Qb5 {[%clk 0:02:39]}  Bg6 {[%clk 0:01:38]} 16. Rc1 {[%clk 0:02:31]}  Bd6 {[%clk 0:01:32]} 17. O-O {[%clk 0:02:27]}  Ke7 {[%clk 0:01:09]} 18. Qe2 {[%clk 0:02:20]}  c6 {[%clk 0:01:00]} 19. Nh4 {[%clk 0:02:03]}  Bh7 {[%clk 0:00:56]} 20. f4 {[%clk 0:02:03]}  Qb6 {[%clk 0:00:29]} 21. Be3 {[%clk 0:01:51]}  Qxb2 {[%clk 0:00:26]} 22. Nd1 {[%clk 0:01:43]}  Be4 {[%clk 0:00:20]} 23. Nxb2 {[%clk 0:01:41]} 1-0


[Site "https://www.chess.com"]

[Event "Titled Tuesday Blitz June 28 Late 2022"]
[White "Vlassov, Nikolai"]
[Black "Gatterer, Florian"]
[WhiteFideId "4103360"]
[BlackFideId "811688"]
[WhiteElo "2407"]
[BlackElo "2218"]
[Result "1-0"]
[Round "07"]
[TimeControl "180+1"]
[Date "2022.06.29"]
[WhiteClock "0:00:05"]
[BlackClock "0:00:05"]

1. e4 {[%clk 0:03:00]}  e5 {[%clk 0:02:58]} 2. Bc4 {[%clk 0:03:00]}  Nf6 {[%clk 0:02:56]} 3. d3 {[%clk 0:03:00]}  Nc6 {[%clk 0:02:56]} 4. Nf3 {[%clk 0:02:59]}  Bc5 {[%clk 0:02:55]} 5. Bg5 {[%clk 0:02:58]}  h6 {[%clk 0:02:53]} 6. Bh4 {[%clk 0:02:58]}  g5 {[%clk 0:02:50]} 7. Bg3 {[%clk 0:02:58]}  d6 {[%clk 0:02:51]} 8. Nfd2 {[%clk 0:02:48]}  Be6 {[%clk 0:02:39]} 9. h4 {[%clk 0:02:46]}  g4 {[%clk 0:02:36]} 10. h5 {[%clk 0:02:46]}  Qd7 {[%clk 0:02:26]} 11. Nc3 {[%clk 0:02:40]}  Nh7 {[%clk 0:02:17]} 12. Bh4 {[%clk 0:02:37]}  Rg8 {[%clk 0:02:10]} 13. Nd5 {[%clk 0:02:34]}  Na5 {[%clk 0:02:03]} 14. b4 {[%clk 0:02:22]}  Bxd5 {[%clk 0:01:51]} 15. Bxd5 {[%clk 0:01:58]}  Bxb4 {[%clk 0:01:49]} 16. Rb1 {[%clk 0:01:59]}  Bc5 {[%clk 0:01:34]} 17. Nb3 {[%clk 0:01:17]}  Nxb3 {[%clk 0:01:32]} 18. Bxb3 {[%clk 0:01:02]}  Ng5 {[%clk 0:01:25]} 19. Qd2 {[%clk 0:00:59]}  O-O-O {[%clk 0:01:22]} 20. a4 {[%clk 0:00:53]}  Rg7 {[%clk 0:01:15]} 21. a5 {[%clk 0:00:53]}  a6 {[%clk 0:01:09]} 22. c3 {[%clk 0:00:46]}  f5 {[%clk 0:01:08]} 23. exf5 {[%clk 0:00:31]}  Qxf5 {[%clk 0:01:07]} 24. Bxg5 {[%clk 0:00:27]}  Rxg5 {[%clk 0:01:05]} 25. Bd5 {[%clk 0:00:25]}  c6 {[%clk 0:00:59]} 26. Be4 {[%clk 0:00:25]}  Qf6 {[%clk 0:00:58]} 27. g3 {[%clk 0:00:22]}  Rf8 {[%clk 0:00:52]} 28. Rh2 {[%clk 0:00:21]}  d5 {[%clk 0:00:51]} 29. Bh1 {[%clk 0:00:21]}  Rf5 {[%clk 0:00:51]} 30. Rb2 {[%clk 0:00:20]}  Ba7 {[%clk 0:00:46]} 31. c4 {[%clk 0:00:18]}  dxc4 {[%clk 0:00:42]} 32. dxc4 {[%clk 0:00:18]}  Rd8 {[%clk 0:00:42]} 33. Qe2 {[%clk 0:00:16]}  Rf3 {[%clk 0:00:39]} 34. Bxf3 {[%clk 0:00:16]}  gxf3 {[%clk 0:00:39]} 35. Qe4 {[%clk 0:00:14]}  Rd4 {[%clk 0:00:35]} 36. Qg6 {[%clk 0:00:13]}  Qd8 {[%clk 0:00:31]} 37. Qe6+ {[%clk 0:00:11]}  Kb8 {[%clk 0:00:27]} 38. Qxe5+ {[%clk 0:00:11]}  Ka8 {[%clk 0:00:28]} 39. Rb1 {[%clk 0:00:10]}  Rd7 {[%clk 0:00:25]} 40. Kf1 {[%clk 0:00:10]}  Re7 {[%clk 0:00:21]} 41. Qc3 {[%clk 0:00:10]}  Bd4 {[%clk 0:00:19]} 42. Qxf3 {[%clk 0:00:09]}  Qe8 {[%clk 0:00:18]} 43. Rh4 {[%clk 0:00:09]}  Rf7 {[%clk 0:00:18]} 44. Qe4 {[%clk 0:00:07]}  Rxf2+ {[%clk 0:00:17]} 45. Ke1 {[%clk 0:00:08]}  Qd8 {[%clk 0:00:16]} 46. Qxd4 {[%clk 0:00:08]}  Qf8 {[%clk 0:00:11]} 47. Rf4 {[%clk 0:00:04]}  Rxf4 {[%clk 0:00:11]} 48. Qxf4 {[%clk 0:00:04]}  Qa3 {[%clk 0:00:12]} 49. Kf2 {[%clk 0:00:02]}  Qa2+ {[%clk 0:00:11]} 50. Kf3 {[%clk 0:00:02]}  Qxb1 {[%clk 0:00:11]} 51. Qxh6 {[%clk 0:00:03]}  Qd3+ {[%clk 0:00:11]} 52. Kg2 {[%clk 0:00:02]}  Qxc4 {[%clk 0:00:11]} 53. Qf8+ {[%clk 0:00:01]}  Ka7 {[%clk 0:00:11]} 54. Qf2+ {[%clk 0:00:02]}  Ka8 {[%clk 0:00:10]} 55. Qf4 {[%clk 0:00:02]}  Qd5+ {[%clk 0:00:09]} 56. Kf2 {[%clk 0:00:02]}  Qxh5 {[%clk 0:00:09]} 57. Qc7 {[%clk 0:00:02]}  Qf5+ {[%clk 0:00:05]} 58. Kg2 {[%clk 0:00:02]}  Qc2+ {[%clk 0:00:05]} 59. Kh3 {[%clk 0:00:03]}  Qf5+ {[%clk 0:00:06]} 60. g4 {[%clk 0:00:03]}  Qf3+ {[%clk 0:00:05]} 61. Kh4 {[%clk 0:00:03]}  Qf6+ {[%clk 0:00:04]} 62. Kh5 {[%clk 0:00:03]}  Qf3 {[%clk 0:00:02]} 63. Kg5 {[%clk 0:00:03]}  Qe3+ {[%clk 0:00:02]} 64. Kh5 {[%clk 0:00:03]}  Qh3+ {[%clk 0:00:01]} 65. Kg5 {[%clk 0:00:04]}  Qg2 {[%clk 0:00:02]} 66. Kf5 {[%clk 0:00:03]}  Qf3+ {[%clk 0:00:02]} 67. Kg5 {[%clk 0:00:04]}  Qe3+ {[%clk 0:00:02]} 68. Qf4 {[%clk 0:00:03]}  Qe7+ {[%clk 0:00:01]} 69. Qf6 {[%clk 0:00:03]}  Qe3+ {[%clk 0:00:01]} 70. Kg6 {[%clk 0:00:03]}  Qe4+ {[%clk 0:00:02]} 71. Qf5 {[%clk 0:00:03]}  Qe2 {[%clk 0:00:03]} 72. Kh6 {[%clk 0:00:03]}  Ka7 {[%clk 0:00:03]} 73. g5 {[%clk 0:00:03]}  Qh2+ {[%clk 0:00:03]} 74. Kg7 {[%clk 0:00:03]}  Qe2 {[%clk 0:00:04]} 75. Qc5+ {[%clk 0:00:01]}  Ka8 {[%clk 0:00:03]} 76. g6 {[%clk 0:00:01]}  Qg4 {[%clk 0:00:03]} 77. Kh7 {[%clk 0:00:01]}  Qf5 {[%clk 0:00:03]} 78. Qxf5 {[%clk 0:00:01]}  Ka7 {[%clk 0:00:04]} 79. g7 {[%clk 0:00:01]}  Kb8 {[%clk 0:00:04]} 80. g8=Q+ {[%clk 0:00:02]}  Ka7 {[%clk 0:00:05]} 81. Qge6 {[%clk 0:00:02]}  c5 {[%clk 0:00:05]} 82. Qd7 {[%clk 0:00:03]}  Ka8 {[%clk 0:00:05]} 83. Qxc5 {[%clk 0:00:04]}  Kb8 {[%clk 0:00:05]} 84. Qcc7+ {[%clk 0:00:04]}  Ka8 {[%clk 0:00:05]} 85. Qxb7# {[%clk 0:00:05]} 1-0


[Site "https://www.chess.com"]